Cogmind - Beta 15 @@@ ROGUE MODE // 2025.09.19 @ 13:34:24 Player: Dwarfinator Result: Destroyed 0b10! Performance ------------- Evolutions (9) 4500 Regions Visited (21) 4200 Robots Destroyed (545) 2725 Value Destroyed (31351) 31351 Prototype IDs (60) 1200 Alien Tech Used (13) 2600 Bonus (45694) 45694 TOTAL SCORE: 92270 Bonus ------- Triggered Max Security 2000 High Alert Combat Kills 15346 Follower Combat Kills 4552 Network Hubs Disabled 200 Registered with UFD 300 Built Enhanced Grunts 300 Met R17 at Cetus 500 Found Hidden Lab 3000 Used Core Reset Matrix 3000 Met R17 at Research 2000 Met Sigix 2000 Activated Exoskeleton 3000 Escaped with Exo-Sigix 10000 Win 3000 Friendly Fire -3504 Cogmind --------- Core Integrity 1579/1600 Matter 300/300 Energy 1529/1550 System Corruption 0% +Membrane Temperature Cool (12) +ITN Movement Treading (160) Location Tau Ceti IV Orbit Parts ------- > --- POWER (4) -------- Vortex Chain Reactor Vortex Chain Reactor > --- PROPULSION (6) --- High-density Centrium Heavy Treads High-density Centrium Heavy Treads High-density Centrium Heavy Treads > --- UTILITY (12) ----- Experimental Heat Sink Huge Storage Unit Experimental Optical Array Experimental Terrain Scanner Experimental Targeting Computer Experimental Core Analyzer Advanced Weapon Cycler Advanced Transmission Jammer Heavy Regenerative Plating Graphene Brace Advanced Force Field > --- WEAPON (4) ------- Enhanced Nova Cannon Improved Potential Cannon Hypervelocity Multirail > --- INVENTORY (25) --- Reinforced Antimatter Reactor Light Quantum Reactor Improved Quantum Reactor Improved Heavy Siege Treads Experimental Power Amplifier Advanced Heat Sink Advanced Heat Sink Experimental Energy Well (600) Experimental Energy Well (600) Experimental Energy Well (600) Experimental Energy Well (600) Advanced Sensor Array Heavy Armor Plating Experimental EM Shield Long-range Tractor Beam Transdimensional Reconstructor Microwarp Drive Compact HERF Cannon Multirail Multirail Peak State ------------ > --- POWER ------------ Vortex Chain Reactor Vortex Chain Reactor > --- PROPULSION ------- Improved Heavy Siege Treads High-density Centrium Heavy Treads High-density Centrium Heavy Treads > --- UTILITY ---------- Huge Storage Unit Experimental Optical Array Experimental Terrain Scanner Experimental Targeting Computer Experimental Core Analyzer Advanced Transmission Jammer Heavy Regenerative Plating Graphene Brace Microwarp Drive > --- WEAPON ----------- Compact HERF Cannon Enhanced Nova Cannon Improved Potential Cannon > --- INVENTORY -------- Reinforced Antimatter Reactor Light Quantum Reactor High-density Centrium Heavy Treads Experimental Power Amplifier Advanced Heat Sink Experimental Energy Well Experimental Energy Well Experimental Energy Well Experimental Energy Well Advanced Sensor Array Advanced Weapon Cycler Experimental Weapon Shielding Heavy Armor Plating Heavy Armor Plating Experimental EM Shield Long-range Tractor Beam Transdimensional Reconstructor Core Regenerator Integrity Redistributor Hypervelocity Multirail Hypervelocity Multirail [Rating: 265] Favorites ----------- Power Quantum Reactor Engine Ion Engine Power Core Fission Core Reactor Quantum Reactor Propulsion Centrium Heavy Treads Treads Centrium Heavy Treads Leg Heavy Shield Leg Wheel Compact Wheel Utility Huge Storage Unit Device Advanced Transmission Jammer Storage Huge Storage Unit Processor Experimental Targeting Computer Hackware Advanced Hacking Suite Protection Improved Medium Armor Plating Artifact Phase Armor Weapon Hypervelocity Multirail Energy Gun Gatling Laser Energy Cannon Enhanced Nova Cannon Ballistic Gun Hypervelocity Multirail Ballistic Cannon Light Cannon Launcher Grenade Launcher Special Weapon Improved Remote Datajack Impact Weapon Hammer Slashing Weapon Makeshift Sword Piercing Weapon Enhanced Force Lance Special Melee Weapon Improved Datajack Build | -11 -10 -10 -10 -7 -7 -5 -5 -5 -5 -5 -4 -4 -4 -4 -4 -3 -3 -2 -2 -2 -1 ------- Run | Yrd Mat Min Sub Rec Scr Fac Ext Cet Arc Hub Fac Was Fac Arm Lab Res Tes Res Qua Sec Acc Slots Evolved 18 | . . . . . . 10 . . . . 2 . . . . 2 . 2 . . 2 Power 3 | . . . . . . 1 . . . . . . . . . 1 . . . . 1 Propulsion 4 | . . . . . . 3 . . . . 1 . . . . . . . . . . Utility 10 | . . . . . . 6 . . . . . . . . . 1 . 2 . . 1 Weapon 1 | . . . . . . . . . . . 1 . . . . . . . . . . Parts Attached 324 | 4 9 12 24 16 7 30 17 22 7 13 20 10 7 34 3 11 22 2 29 10 15 Power 38 | . 1 2 2 3 3 2 . 3 . 3 1 1 1 2 . 3 2 . 4 1 4 Engine 10 | . 1 2 2 2 2 . . . . 1 . . . . . . . . . . . Core 5 | . . . . 1 1 2 . . . . . . . . . 1 . . . . . Reactor 23 | . . . . . . . . 3 . 2 1 1 1 2 . 2 2 . 4 1 4 Propulsion 57 | 2 . 3 8 7 2 8 1 3 . 3 2 6 . 4 . 1 2 . 4 . 1 Treads 36 | 2 . 1 3 3 . 6 1 3 . 3 1 1 . 4 . 1 2 . 4 . 1 Leg 2 | . . . . . . . . . . . . 2 . . . . . . . . . Wheel 19 | . . 2 5 4 2 2 . . . . 1 3 . . . . . . . . . Hover . | . . . . . . . . . . . . . . . . . . . . . . Flight . | . . . . . . . . . . . . . . . . . . . . . . Utility 148 | 1 3 3 5 2 2 14 9 8 5 7 12 3 6 17 1 6 11 2 14 8 9 Device 84 | 1 1 1 2 1 . 8 6 3 5 3 9 3 2 10 . 5 8 . 8 3 5 Storage 10 | . 2 1 . 1 1 . . . . 1 . . . 1 . . 2 . 1 . . Processor 14 | . . . . . . . . 1 . . 2 . 2 3 . . . 1 1 3 1 Hackware 7 | . . . . . . 2 . . . . 1 . . 1 . . 1 1 1 . . Protection 30 | . . 1 3 . 1 4 3 4 . 3 . . 2 2 1 1 . . 1 1 3 Artifact 3 | . . . . . . . . . . . . . . . . . . . 2 1 . Weapon 81 | 1 5 4 9 4 . 6 7 8 2 . 5 . . 11 2 1 7 . 7 1 1 Energy Gun 17 | 1 . 1 3 . . 1 1 3 . . 1 . . 3 1 . 2 . . . . Energy Cannon 14 | . . . . 1 . 1 . . . . 1 . . 3 1 . 2 . 4 1 . Ballistic Gun 29 | . 4 . 4 . . 1 3 3 2 . 3 . . 4 . . 3 . 1 . 1 Ballistic Cannon 3 | . . 2 . . . 1 . . . . . . . . . . . . . . . Launcher 5 | . 1 . 1 . . 1 . 1 . . . . . . . 1 . . . . . Special Weapon 6 | . . . . . . 1 3 1 . . . . . . . . . . 1 . . Impact Weapon 1 | . . 1 . . . . . . . . . . . . . . . . . . . Slashing Weapon 3 | . . . 1 2 . . . . . . . . . . . . . . . . . Piercing Weapon 1 | . . . . . . . . . . . . . . . . . . . 1 . . Special Melee Weapon 2 | . . . . 1 . . . . . . . . . 1 . . . . . . . Unidentified Prototypes 39 | . . . . . . . . 5 . 1 . . . . 5 1 9 1 9 5 3 Corrupted Parts 7 | . . . . . . . . . 2 5 . . . . . . . . . . . System Corruption 40 | . . . . . . . . . 13 27 . . . . . . . . . . . Parts Lost 50 | . . 1 2 . . 5 1 1 1 12 4 1 13 4 . . . . . 3 2 Power 8 | . . . . . . 1 . . . 3 2 . 2 . . . . . . . . Propulsion 10 | . . 1 1 . . 1 . 1 . 2 . . 3 1 . . . . . . . Utility 23 | . . . 1 . . 3 1 . 1 4 1 . 5 3 . . . . . 3 1 Weapon 9 | . . . . . . . . . . 3 1 1 3 . . . . . . . 1 Highest Loss Streak 10 | . . 1 1 . . 4 1 1 1 9 4 1 10 2 . . . . . 1 1 To Critical Strikes 2 | . . . 1 . . . . 1 . . . . . . . . . . . . . Average Backups 21 | 6 11 22 21 10 28 26 31 28 25 21 21 20 21 23 19 22 22 20 19 16 19 Power 1 | 1 1 2 2 . . 1 1 1 1 1 . . 1 1 2 1 . . . 1 2 Propulsion 2 | 3 2 6 4 1 4 2 2 2 2 2 2 4 2 2 . 1 1 1 1 1 1 Utility 8 | . 1 3 5 4 12 10 13 12 13 9 12 10 12 7 9 11 12 12 12 11 12 Weapon 5 | 1 6 10 7 3 7 8 10 9 4 4 2 1 1 8 4 4 4 3 2 1 1 Tool/Special . | . . . . . . . . . . . . . . . . . . . . . . Unused Backups 118 | 5 12 2 6 10 8 3 5 11 1 2 8 2 1 19 3 1 5 . 4 4 6 Power 10 | 1 3 . 1 1 . . . 2 . 1 . . . 1 . . . . . . . Propulsion 21 | 2 3 . 1 . 1 2 . 2 . . 2 . . 4 . . 1 . 1 2 . Utility 44 | 1 3 1 2 4 3 . . 2 . . 6 2 1 3 2 1 3 . 3 2 5 Weapon 41 | 1 3 1 2 5 4 1 5 5 . 1 . . . 11 1 . 1 . . . . Tool/Special 2 | . . . . . . . . . 1 . . . . . . . . . . . 1 Average Slot Usage (%) 84 | . 100 100 96 79 78 86 81 74 78 81 83 74 76 82 77 85 81 82 80 78 69 Engine 5 | . 14 14 14 7 5 . . . . . . 1 . . . . . . . . . Core 2 | . . . . 6 5 10 11 3 . . . . . . . . . . . . . Reactor 4 | . . . . . . . . 9 14 11 9 7 9 9 10 11 12 12 11 8 7 Treads 11 | . 28 19 14 8 . 11 5 12 14 13 14 . 2 15 25 19 15 12 12 12 11 Wheel 8 | . . 8 12 19 23 9 11 1 . . . 9 5 2 . . . . . . . Device 14 | . 12 6 9 5 . 19 18 14 19 23 28 26 23 28 23 26 26 25 22 15 14 Storage 7 | . 15 14 13 4 14 5 5 4 4 4 5 5 5 5 5 4 4 4 4 4 3 Processor 1 | . . . . . . . . 3 4 3 3 . 1 . . . . 3 5 10 12 Protection 4 | . . 7 3 4 . 10 15 10 7 11 . . 1 1 6 4 4 4 3 4 6 Energy Gun 1 | . 1 1 3 . . 3 5 2 . . . 3 1 3 1 1 . . . . . Energy Cannon 3 | . . . . 6 . 2 . . . . 3 4 4 4 4 3 6 8 7 8 5 Ballistic Gun 7 | . 26 2 13 8 . . 3 5 11 11 7 4 8 7 . 11 9 8 5 7 4 Ballistic Cannon 1 | . . 20 2 . . 1 . . . . . . . . . . . . . . . Slashing Weapon 2 | . . . 1 6 14 . . 1 . . 2 . . . . . . . . . . Special Melee Weapon 1 | . . . . . 14 . . . . . . . . . . . . . . . . Peak Build Rating 265 | 8 8 10 21 23 35 78 88 180 182 180 147 141 143 160 154 178 198 213 248 263 265 Average Rating 90 | 6 7 8 14 17 25 70 83 148 172 153 140 120 134 140 124 166 183 207 214 244 245 On Entrance 109 | 6 8 8 9 17 23 35 76 88 180 175 100 125 140 79 139 152 171 193 209 247 230 Naked Turns . | . . . . . . . . . . . . . . . . . . . . . . Heaviest Build 267 | 15 29 94 95 157 213 199 267 266 246 188 157 160 168 181 195 209 216 209 247 251 239 Greatest Support 280 | 40 40 40 40 48 36 56 56 256 256 240 240 80 160 214 188 194 215 215 255 265 280 Greatest Overweight (x) 9 | . . 9 9 9 9 7 4 9 . 1 7 7 8 6 1 1 1 . 1 . . Average Overweight (x) 2 | . . 6 4 1 5 4 3 1 . . . 4 6 . . . . . . . . Largest Inventory Capacity 35 | 8 15 25 25 30 35 35 35 35 30 25 25 25 25 25 25 25 25 25 25 25 25 Average Capacity 24 | 8 12 24 23 12 31 30 34 30 29 25 25 25 25 25 25 25 25 25 25 25 25 Most Carried 35 | 8 15 25 25 30 35 33 35 35 30 25 25 25 25 25 25 25 25 25 25 25 25 Average Carried 23 | 6 11 23 23 11 30 29 34 30 28 24 23 24 23 23 21 24 24 23 24 24 23 Final Capacity 35 | 8 15 25 25 30 35 30 35 30 25 25 25 25 25 25 25 25 25 25 25 25 25 Final Carried 35 | 8 15 25 25 30 35 30 35 30 25 15 25 25 21 25 25 25 25 25 25 21 24 Class Distribution -------------------- 24% | Scavenger-Tank 22% | Hauler-Mutant 19% | Scavenger-Mutant 19% | Mutant 3% | Alien-Tank Dominant Class ---------------- Mutant | -10/Materials Mutant | -10/Mines Scavenger-Mutant | -10/Subcaves Scavenger-Mutant | -7/Recycling Hauler-Mutant | -7/Scraptown Hauler-Mutant | -5/Factory Hauler-Mutant | -5/Extension Scavenger-Tank | -5/Cetus Scavenger-Tank | -5/Archives Scavenger-Mutant | -5/Hub_04(d) Scavenger-Mutant | -4/Factory Scavenger-Mutant | -4/Waste Scavenger-Tank | -4/Factory Scavenger-Tank | -4/Armory Scavenger-Mutant | -4/Lab Scavenger-Tank | -3/Research Scavenger-Tank | -3/Testing Hacker-Tank | -2/Research Scavenger-Tank | -2/Quarantine Alien-Tank | -2/Section 7 Scavenger-Tank | -1/Access Resources | -11 -10 -10 -10 -7 -7 -5 -5 -5 -5 -5 -4 -4 -4 -4 -4 -3 -3 -2 -2 -2 -1 ----------- Run | Yrd Mat Min Sub Rec Scr Fac Ext Cet Arc Hub Fac Was Fac Arm Lab Res Tes Res Qua Sec Acc Matter Collected 19844 | 240 394 648 1021 2422 138 882 1162 361 686 1275 1006 265 918 1583 . 641 1708 186 1202 1726 1380 Remotely 6149 | . . . . . . 172 293 . . 536 471 . 440 813 . 46 1168 43 798 497 872 Salvage Created 32364 | 196 432 367 352 889 . 821 1198 432 422 2310 1106 389 1211 1272 . 322 1898 288 1753 6234 10472 Parts 1458 | 16 34 25 16 25 . 39 55 35 34 95 77 8 51 69 . 19 118 6 112 269 355 Haulers Intercepted 5 | . 2 . . . . . . . . 1 . . . . . . . . . 2 . Recyclers Shooed 15 | . 1 . . 5 . 2 2 . . 1 1 . . . . 1 1 . . . 1 Parts Field Recycled . | . . . . . . . . . . . . . . . . . . . . . . Retrieved Matter . | . . . . . . . . . . . . . . . . . . . . . . Parts Self-Destructed 17 | . . . 17 . . . . . . . . . . . . . . . . . . Prevented . | . . . . . . . . . . . . . . . . . . . . . . Kills | -11 -10 -10 -10 -7 -7 -5 -5 -5 -5 -5 -4 -4 -4 -4 -4 -3 -3 -2 -2 -2 -1 ------- Run | Yrd Mat Min Sub Rec Scr Fac Ext Cet Arc Hub Fac Was Fac Arm Lab Res Tes Res Qua Sec Acc Combat Hostiles Destroyed 412 | . 10 11 8 . . 14 21 4 1 25 7 1 18 20 . 3 24 2 21 71 151 Guns 230 | . 5 . 6 . . 8 16 . 1 10 4 . 9 16 . 3 15 2 17 66 52 Cannons 62 | . . 8 2 . . 2 . . . . 3 . 4 4 . . 8 . 2 1 28 AOE 95 | . 5 3 . . . 3 5 . . 9 . . 3 . . . . . . 1 66 Classes Destroyed 34 | 3 5 2 4 . . 1 1 1 1 4 1 2 2 1 . . . . 2 3 1 Worker 12 | 2 2 3 . . . . . . . 1 . . 1 . . . 1 . 1 . 1 Builder 25 | . 2 . . 2 . 1 3 . . 1 8 . 1 . . 1 1 . . . 5 Tunneler 8 | 3 . 1 . . . 2 . . . . 1 . . . . 1 . . . . . Hauler 5 | . 2 . . . . . . . . 1 . . . . . . . . . 2 . Recycler 27 | 1 1 1 . 11 . 1 3 . . 3 . . . . . . . 1 . 2 3 Carrier 6 | . . . . . . . . . . . . . 1 . . . . . 1 . 4 Mechanic 9 | . 1 . . . . 1 . . . . . . . . . . . . . . 7 Operator 14 | . . . . . . . . . 9 . . . . 1 . . 1 . 1 2 . Turret 2 | . . . 2 . . . . . . . . . . . . . . . . . . Watcher 11 | . . . . . . . . 1 . . 1 . 2 . . 1 1 1 2 1 1 Swarmer 51 | . 6 3 . . . 4 12 . . 1 . . 5 7 . . . . 1 . 12 Saboteur 11 | . . . . . . . . . . 1 . . . . . . . . . 2 8 Grunt 123 | . 4 4 . . . . 2 . . 11 4 . 4 1 . . 9 . 3 22 59 Brawler 24 | . . . . . . . . . . 4 . . . 3 . . . . . 2 15 Duelist 17 | . . . . . . . . . . 3 . . . . . . . . . 1 13 Protector 12 | . . . . . . . . . . 2 . . . . . . . . 1 1 8 Researcher 1 | . . . . . . . . . . . . . . . . . . . 1 . . Sentry 31 | . . 2 . . . 3 2 . 1 . 1 . 1 . . 1 . . . 7 13 Specialist 10 | . . . . . . . . . . . . . 2 2 . . 2 2 . 2 . Hunter 30 | . . . . . . . 5 . . 1 1 . 1 3 . 2 2 . . 12 3 Programmer 57 | . . . . . . 7 . . . 1 1 . 5 3 . . 10 . 12 11 7 Heavy 2 | . . . . . . . . . . . . . . 1 . . . . . . 1 Behemoth 2 | . . . . . . . . . . . . . . . . . . . . . 2 Compactor 1 | . . . . . . . . . . . . 1 . . . . . . . . . Cetus Guard 4 | . . . . . . . . 4 . . . . . . . . . . . . . S7 Guard 3 | . . . . . . . . . . . . . . . . . . . . 3 . Enhanced Grunt 3 | . . . . . . . . . . 3 . . . . . . . . . . . Lightning 4 | . . . . . . . . . . 1 . . . . . . . . 3 . . Investigator 3 | . . . . . . . . . . . . . . . . . . . . 1 2 Striker 7 | . . . . . . . . . . . . . . . . . . . . 1 6 Executioner 9 | . . . . . . . . . . . . . . . . . . . . 5 4 Alpha 7 2 | . . . . . . . . . . . . . . . . . . . . 2 . Fortress 1 | . . . . . . . . . . . . . . . . . . . 1 . . Protovariant P 1 | . . . . . . . . . . . . . . . . . 1 . . . . Artisan 2 | . . . 2 . . . . . . . . . . . . . . . . . . Cobbler 1 | . . . 1 . . . . . . . . . . . . . . . . . . Subdweller 8 | . . . 8 . . . . . . . . . . . . . . . . . . Scrapoid 4 | . . . . . . . . . . . 4 . . . . . . . . . . Assembled 2 | . . 2 . . . . . . . . . . . . . . . . . . . Wasp 1 | . . . . . . . . . . . . 1 . . . . . . . . . Thug 1 | . . . . . . . . . . . . . 1 . . . . . . . . Martyr 2 | . . . . . . . . . . . . 2 . . . . . . . . . Best Kill Streak 42 | 4 5 3 2 5 . 6 7 4 3 20 4 1 7 5 . 2 5 2 7 24 42 Combat Bots Only 37 | . 3 3 2 . . 6 7 3 1 8 3 1 5 5 . 2 5 2 5 22 37 Max Kills in Single Turn 6 | 1 2 2 1 1 . 2 3 1 1 3 1 1 4 1 . 1 2 1 2 3 6 Gunslinging 1 | . . . . . . . 1 . . . . . . . . . . . . 1 1 Exploded 4 | . 2 2 . . . 2 3 . . 3 . . 2 . . . . . . 1 4 Melee . | . . . . . . . . . . . . . . . . . . . . . . Uniques/NPCs Destroyed 1 | . . . . . . . . 1 . . . . . . . . . . . . . A7 (-5/Cetus) Combat | -11 -10 -10 -10 -7 -7 -5 -5 -5 -5 -5 -4 -4 -4 -4 -4 -3 -3 -2 -2 -2 -1 -------- Run | Yrd Mat Min Sub Rec Scr Fac Ext Cet Arc Hub Fac Was Fac Arm Lab Res Tes Res Qua Sec Acc Hostile Shots Fired 2073 | . 32 37 75 . . 96 111 20 2 342 128 1 353 137 . 9 245 36 84 225 140 Missed 546 | . 7 13 22 . . 23 38 11 . 78 27 . 87 41 . 4 65 18 24 48 40 Deflected 10 | . . . . . . . . . . . . . 10 . . . . . . . . Hits 1527 | . 25 24 53 . . 73 73 9 2 264 101 1 266 96 . 5 180 18 60 177 100 Melee 20 | . . 3 . . . . . . . 8 . 1 6 1 . . . . . 1 . Projectile 1507 | . 25 21 53 . . 73 73 9 2 256 101 . 260 95 . 5 180 18 60 176 100 AOE 3 | . . . . . . 1 . . . . . . . . . . . . . . 2 Critical Strikes 87 | . . . 3 . . 5 5 3 . 21 9 . 10 2 . . 6 . 3 15 5 Actively Blocked 49 | . . . . . . . . . . 11 9 . 1 2 . . 6 . 3 13 4 Part Disruptions 2 | . . . . . . . . . . 2 . . . . . . . . . . . Damage Taken 23634 | . 305 357 949 . . 1128 1118 180 35 5438 1606 28 3714 1440 . 83 1101 60 865 2981 2246 Core 2077 | . 40 49 124 . . 63 65 . . 255 50 . 392 105 . . 35 3 176 592 128 Absorbed by Shields 7513 | . . . . . . 412 413 66 13 835 491 29 1374 . . 25 1178 72 784 1391 430 Reduced by Siege Mode 678 | . . . . . . . . . . 173 123 . 114 19 . . 62 . 73 57 57 Redirected to Core 411 | . . . . . . . . . . . . . . . . . . . 140 271 . Redirected to Shielding 193 | . . . . . . . . . . . . . . 36 . . . . . 98 59 Ignored by Resistances 1642 | . . . 5 . . . 57 10 . 1070 . . . 22 . 17 . . 356 105 . Regen/Repaired (Parts) 4352 | . . . . . . 34 . 65 24 23 3 1299 435 . . . . . . 30 2439 Core Remaining (%) 66 | 100 . . . . 14 . . . . 61 . . . . 52 . 97 . . 46 98 Volleys Fired 1317 | 13 35 44 52 11 . 77 82 13 53 98 47 18 67 78 62 34 129 21 85 143 155 Largest 4 | 2 2 2 2 1 . 2 2 2 3 3 3 2 3 3 1 4 4 1 2 2 2 Hottest 360 | 100 100 60 90 80 . 160 161 125 105 105 158 190 222 360 120 240 208 120 200 200 200 Shots Fired 2094 | 26 64 68 84 13 . 109 139 18 91 174 105 22 158 159 63 61 198 21 94 220 207 Gun 1350 | 26 58 17 60 1 . 45 129 9 82 149 64 4 105 106 . 39 117 7 55 158 119 Cannon 670 | . . 49 16 12 . 62 . . . . 40 18 52 53 63 22 81 14 38 62 88 Launcher 50 | . 6 2 8 . . 2 3 5 . 24 . . . . . . . . . . . Special 24 | . . . . . . . 7 4 9 1 1 . 1 . . . . . 1 . . Kinetic 1224 | . 54 49 58 1 . 26 74 . 82 149 64 . 77 100 . 34 117 7 55 158 119 Thermal 718 | 26 4 17 9 12 . 81 55 . 9 . 40 22 80 53 63 22 56 14 30 40 85 Explosive 21 | . 6 2 8 . . 2 3 . . . . . . . . . . . . . . Electromagnetic 116 | . . . 9 . . . . 14 . 24 . . . 6 . 5 25 . 8 22 3 Robot Hit Streak 29 | 4 7 12 15 7 . 12 25 7 8 12 14 10 19 10 . 7 20 7 29 20 12 Robot Miss Streak 7 | 3 4 3 2 . . 4 4 1 3 6 4 2 6 3 . 3 4 3 3 7 7 Penetration Max 2 | . . . . . . . 1 . . 1 1 . 1 1 . . 2 . 1 2 2 Secondary Targets 30 | . . . . . . . 4 . . 3 2 . . 1 . . . . 1 13 6 Max Gunslinging Chain 1 | . . . . . . . 1 . . 1 1 . . 1 . . . . 1 1 1 Shots Hit Robots 1344 | 13 43 43 60 22 4 69 100 22 57 113 68 13 102 71 . 33 116 6 73 159 157 Core Hits 940 | 7 31 18 26 11 . 42 63 12 23 93 30 6 47 35 . 9 58 6 52 148 223 Critical Kills 207 | . 1 . 1 . . 1 2 . 4 5 5 1 4 14 . 3 16 4 22 68 56 Critical Parts Destroyed 244 | . . 1 . . . . 2 . 6 17 6 . . 10 . 2 28 2 36 79 55 Critical Strikes 490 | 2 2 3 2 . . 3 6 1 10 23 12 2 5 25 . 7 44 6 58 156 123 Burn 8 | 2 1 1 . . . . 2 . . . . 1 1 . . . . . . . . Meltdown 6 | . . . . . . 1 . . . . . 1 1 . . . . . 1 . 2 Destroy 470 | . 1 . 1 . . . 4 . 10 23 12 . 3 25 . 7 44 6 57 156 121 Blast 4 | . . 1 1 . . 2 . . . . . . . . . . . . . . . Smash 1 | . . 1 . . . . . . . . . . . . . . . . . . . Sever 1 | . . . . . . . . 1 . . . . . . . . . . . . . Melee Attacks 136 | . . 24 37 35 4 6 . 10 . . 13 . . 3 . . . . 4 . . Impact 57 | . . 24 33 . . . . . . . . . . . . . . . . . . Slashing 66 | . . . 4 35 . 4 . 10 . . 13 . . . . . . . . . . Piercing 4 | . . . . . . . . . . . . . . . . . . . 4 . . Sneak Attacks 47 | . . 3 1 14 4 4 . 10 . . 8 . . 3 . . . . . . . Combat Hostiles . | . . . . . . . . . . . . . . . . . . . . . . Follow-up Attacks . | . . . . . . . . . . . . . . . . . . . . . . Damage Inflicted 65447 | 187 974 841 1385 1613 . 2175 2988 1071 1466 5714 2688 464 4407 1233 . 464 2172 66 2456 3642 29441 Guns 18416 | 187 481 118 887 . . 918 2562 169 1429 3242 750 117 1985 505 . 104 868 66 759 1808 1461 Cannons 17840 | . . 513 188 103 . 830 . . . . 880 347 1262 728 . 314 1223 . 1303 1095 9054 Explosions 26144 | . 493 90 241 . . 286 426 376 . 2463 482 . 1147 . . . 81 . 394 739 18926 Melee 2942 | . . 120 69 1510 . 141 . 526 . . 576 . . . . . . . . . . Ramming 68 | . . . . . . . . . . 9 . . 13 . . 46 . . . . . Kinetic 16010 | . 431 513 854 . . 391 1404 . 1429 3242 750 . 1450 486 . 98 868 66 759 1808 1461 Thermal 40582 | 187 50 118 159 103 . 1357 1158 . 37 824 1362 464 2659 728 . 314 453 . 1242 1508 27859 Explosive 1864 | . 493 90 203 . . 286 426 . . . . . 285 . . . 81 . . . . Electromagnetic 3981 | . . . 100 . . . . 545 . 1639 . . . 19 . 6 770 . 455 326 121 Impact 120 | . . 120 . . . . . . . . . . . . . . . . . . . Slashing 2822 | . . . 69 1510 . 141 . 526 . . 576 . . . . . . . . . . Piercing . | . . . . . . . . . . . . . . . . . . . . . . Highest Corruption 62 | . 1 1 1 1 . 10 10 10 10 62 1 1 5 9 5 . 4 . 4 4 . Average Corruption 3 | . 1 1 1 1 . 5 10 10 7 13 1 1 2 5 5 . 3 . 3 3 . Corruption Purged 33 | . . . . . . . . . 23 . 1 . . 5 . . . . . 4 . Corruption Blocked . | . . . . . . . . . . . . . . . . . . . . . . Effects 350 | . 8 6 17 27 . 25 70 23 12 14 1 3 17 32 15 . 28 . 28 24 . Message Errors 80 | . 4 3 5 9 . 6 14 5 1 2 . 2 7 6 4 . 3 . 5 4 . Matter Fused 77 | . 1 1 . 7 . 11 14 5 2 1 . . 3 10 1 . 9 . 5 7 . Heat Flow Errors 37 | . 2 1 3 4 . 1 8 1 . . . 1 . 3 1 . 4 . 5 3 . Energy Discharges 43 | . . . 3 1 . 2 11 2 3 2 1 . 1 2 5 . 2 . 6 2 . Parts Rejected 5 | . . . . . . . 1 . 1 . . . 1 1 . . . . . 1 . Parts Fused 2 | . . . . 1 . . . . . . . . . 1 . . . . . . . Data Loss (minor) 43 | . . 1 4 2 . 1 11 4 3 2 . . . 4 2 . 2 . 3 4 . Data Loss (major) 17 | . 1 . 1 . . 2 2 4 1 . . . . 2 . . 2 . 1 1 . Misfires 19 | . . . . 2 . 1 4 1 . . . . 3 2 1 . 4 . 1 . . Alerts 6 | . . . 1 1 . 1 1 1 . . . . . . 1 . . . . . . Misdirections 3 | . . . . . . . . . . 3 . . . . . . . . . . . Weapon Failures 18 | . . . . . . . 4 . 1 4 . . 2 1 . . 2 . 2 2 . Overload Shots . | . . . . . . . . . . . . . . . . . . . . . . Overflow Damage 3771 | . . 59 . 294 . 15 35 19 . 13 191 5 11 1 . 75 69 . 55 84 2845 Projectiles 1795 | . . . . . . 15 . . . . 24 5 2 1 . 75 55 . 55 27 1536 Explosions 1540 | . . . . . . . 35 . . 13 103 . 9 . . . 14 . . 57 1309 Melee 436 | . . 59 . 294 . . . 19 . . 64 . . . . . . . . . . Knockbacks 13 | . . 7 1 . . 4 . . . . . . . . . 1 . . . . . Impact 1 | . . . . . . . . . . . . . . . . 1 . . . . . Kinetic 12 | . . 7 1 . . 4 . . . . . . . . . . . . . . . Secondary . | . . . . . . . . . . . . . . . . . . . . . . Self-Inflicted Damage 359 | . 32 . 7 . . . 30 . . 207 . . . . . . . . . . 83 Shots 12 | . 1 . 1 . . . 1 . . 8 . . . . . . . . . . 1 Rammed 3 | . . . . . . . . . . 1 . . 1 . . 1 . . . . . Targets Rammed 3 | . . . . . . . . . . 1 . . 1 . . 1 . . . . . Kicked . | . . . . . . . . . . . . . . . . . . . . . . Crushed . | . . . . . . . . . . . . . . . . . . . . . . Highest Temperature 393 | 273 130 128 143 278 . 247 223 153 104 27 310 367 393 246 306 186 328 48 315 318 273 Average Temperature 102 | 102 43 30 58 92 . 66 50 62 26 8 82 99 97 68 129 55 80 16 90 94 185 Received Heat Transfer 2571 | . 96 48 300 . . 45 138 12 . 582 161 . 531 36 . 9 69 . 65 282 197 Effects 20 | . . . . . . . . . . . . 1 1 . 1 . . . . 3 14 Shutdowns 1 | . . . . . . . . . . . . 1 . . . . . . . . . Energy Bleed 6 | . . . . . . . . . . . . . . . . . . . . 2 4 Interference 10 | . . . . . . . . . . . . . . . . . . . . . 10 Matter Decay 1 | . . . . . . . . . . . . . 1 . . . . . . . . Short Circuit 1 | . . . . . . . . . . . . . . . . . . . . 1 . Damage (minor) 1 | . . . . . . . . . . . . . . . 1 . . . . . . Siege Activations 36 | . . . . . . . . . 1 5 1 . 2 4 . 1 7 1 5 4 5 Total Turns 549 | . . . . . . . . . 31 115 14 . 40 31 . 18 111 3 84 48 54 Longest Duration 39 | . . . . . . . . . 31 39 14 . 28 14 . 18 32 3 24 23 37 Martial Activations . | . . . . . . . . . . . . . . . . . . . . . . Shielding Activations 1 | . . . . . . . . . . . . . 1 . . . . . . . . Total Turns 17 | . . . . . . . . . . . . . 17 . . . . . . . . Longest Duration 17 | . . . . . . . . . . . . . 17 . . . . . . . . Robots Disrupted 1 | . . . . . . . . . . . . . . . . . 1 . . . . Combat Hostiles 1 | . . . . . . . . . . . . . . . . . 1 . . . . Robots Corrupted 17 | . . 1 . . . . . 4 . 6 . . . . . . 1 . 2 3 . Combat Hostiles 15 | . . . . . . . . 4 . 6 . . . . . . 1 . 1 3 . Parts Fried 35 | . . 4 1 . . . . 2 . 7 . . . 1 . . 8 . 12 . . Impact Corruptions 3 | . . 3 . . . . . . . . . . . . . . . . . . . Robots Melted 16 | . . . . . . 2 . . . 1 . 2 2 . . . . . 1 . 8 Combat Hostiles 10 | . . . . . . 1 . . . . . 1 2 . . . . . 1 . 5 Parts Melted 62 | 1 1 . 1 . . 9 11 . . 1 . 3 10 . . 1 . . . 2 22 Heat Transferred 34130 | 703 222 370 150 200 . 2454 2277 . 100 750 1275 670 2627 555 . 259 370 . 696 1187 19265 Parts Sabotaged 10 | . . . . . . . . . . 4 . . . 4 . . . . . 2 . Parts Stolen . | . . . . . . . . . . . . . . . . . . . . . . Parts Stripped . | . . . . . . . . . . . . . . . . . . . . . . Power Chain Reactions 10 | . . . 1 . . . . . . 9 . . . . . . . . . . . Alert | -11 -10 -10 -10 -7 -7 -5 -5 -5 -5 -5 -4 -4 -4 -4 -4 -3 -3 -2 -2 -2 -1 ------- Run | Yrd Mat Min Sub Rec Scr Fac Ext Cet Arc Hub Fac Was Fac Arm Lab Res Tes Res Qua Sec Acc Maximum Alert Level 5 | . 1 . . . . 2 3 2 1 4 3 1 2 3 . . 2 1 1 5 5 Low Security (%) 55 | 100 99 100 . 100 . 61 . . 30 4 . 82 64 16 . 100 45 37 71 8 . Level 1 21 | . . . . . . 32 77 . 69 35 . 17 23 53 . . 51 62 28 13 . Level 2 10 | . . . . . . 6 19 100 . 11 87 . 12 19 . . 2 . . 11 . Level 3 5 | . . . . . . . 3 . . 12 12 . . 10 . . . . . 48 . Level 4 2 | . . . . . . . . . . 36 . . . . . . . . . 8 . Level 5 . | . . . . . . . . . . . . . . . . . . . . . . High Security . | . . . . . . . . . . . . . . . . . . . . . . Max Security 5 | . . . . . . . . . . . . . . . . . . . . 9 99 Sterilizations 1 | . . . . . . . . . . . . . . . . . . . . . 1 Peak Influence 7765 | 10 201 121 . 76 . 613 1087 686 391 1475 745 246 658 741 . 46 463 260 349 2574 7765 Initial 1544 | . 6 . . 15 . . 294 606 217 35 683 246 . 270 . . . 258 111 171 1544 Average 478 | 2 57 37 . 8 . 206 345 602 251 778 615 91 154 365 . 10 167 213 138 847 5342 Influence Increases 19591 | 30 396 279 70 314 . 1045 1451 330 333 1957 652 70 1083 929 . 163 892 110 817 2485 6185 Destroy 0b10 Robot/C 9860 | . 200 220 40 . . 400 700 160 80 800 260 . 420 420 . 60 480 40 440 1480 3660 Destroy 0b10 Robot/NC 710 | 30 40 25 . 65 . 45 35 10 45 50 50 . 25 5 . 15 20 10 25 40 175 Destroy Leader 1502 | . 44 20 . . . 106 92 . . 160 52 . 84 60 . 22 72 12 74 226 478 Allied During Kill 2568 | . . 4 . . . 73 402 160 120 463 62 . 80 7 . . . . . 153 1044 Trap Triggered on 0b10 20 | . . . . . . . . . . . . . 20 . . . . . . . . Successful Hack 404 | . 62 . . 21 . 31 14 . . 7 3 . 16 38 . 36 26 12 134 4 . Select Force Hacks 210 | . . . . 210 . . . . . . . . . . . . . . . . . Disable Machine 1110 | . . . . . . 135 75 . 60 120 75 . 150 90 . . 150 . 75 135 45 Anti-Garrison Action 300 | . . . . . . . . . . 150 . . . . . . . . . . 150 Destroy Structure 2237 | . 35 10 . 18 . 180 88 . 28 192 150 70 228 104 . 30 144 36 69 267 588 Partial Spotted 30 | . . . . . . . . . . . . . . . . . . . . 15 15 Lose Combat Pursuer 540 | . 15 . 30 . . 75 45 . . 15 . . 60 105 . . . . . 165 30 Active Sensor Use 100 | . . . . . . . . . . . . . . 100 . . . . . . . Influence Decreases 12380 | 20 406 207 110 346 . 444 968 870 777 661 1345 773 530 751 731 163 432 372 710 714 1050 Entered New Map 4873 | . 4 . 38 17 . . 307 478 327 65 713 457 . 283 731 . . 202 87 134 1030 Time Decay 6282 | 20 402 207 52 329 . 374 571 262 440 416 422 286 222 428 . 163 432 170 536 550 . Lost Part 470 | . . . . . . 50 10 10 10 120 40 10 130 40 . . . . . 30 20 Lost Ally 497 | . . . 20 . . 20 80 120 . 60 20 20 157 . . . . . . . . Purge Threat 258 | . . . . . . . . . . . 150 . 21 . . . . . 87 . . Squads Dispatched 112 | . 1 . . . . 3 1 . . 11 7 . 12 6 . 5 5 1 4 23 33 Investigation 10 | . . . . . . 1 1 . . 1 2 . . 1 . 3 1 . . . . Extermination 23 | . . . . . . 2 . . . 2 2 . 2 3 . . 4 . 4 4 . Reinforcement 20 | . 1 . . . . . . . . 3 1 . 5 . . 2 . 1 . 6 1 Assault 56 | . . . . . . . . . . 5 2 . 2 2 . . . . . 13 32 Garrison 3 | . . . . . . . . . . . . . 3 . . . . . . . . Intercept . | . . . . . . . . . . . . . . . . . . . . . . Searches Triggered . | . . . . . . . . . . . . . . . . . . . . . . Construction Impeded 1 | . . . . . . . . . . . . . . . . . . . . . 1 Haulers Reinforced 4 | . . . . . . . . . . . 1 . 1 . . . . . . 2 . Active Scanning Responses 1 | . . . . . . . . . . . . . . 1 . . . . . . . Cargo Convoy Interrupts . | . . . . . . . . . . . . . . . . . . . . . . Stealth | -11 -10 -10 -10 -7 -7 -5 -5 -5 -5 -5 -4 -4 -4 -4 -4 -3 -3 -2 -2 -2 -1 --------- Run | Yrd Mat Min Sub Rec Scr Fac Ext Cet Arc Hub Fac Was Fac Arm Lab Res Tes Res Qua Sec Acc Distress Signals 25 | . . . . . . . 2 2 . 3 2 . 1 1 . 6 . . 1 2 5 Communications Jammed 447 | . . . . . . 31 2 . . 171 19 . 150 2 . . 30 . 34 8 . Distress Signals 444 | . . . . . . 31 2 . . 170 19 . 149 1 . . 30 . 34 8 . Times Spotted 690 | . 23 13 12 . . 24 41 9 28 65 16 6 52 34 . 8 32 3 26 107 191 Peak Tracking Total 18 | . 3 3 2 . . 5 6 5 2 12 7 2 18 5 . 2 4 2 7 14 12 Tactical Retreats 23 | . 1 1 1 . . 1 1 . . 1 . 1 3 5 . . . . . 6 2 Traps | -11 -10 -10 -10 -7 -7 -5 -5 -5 -5 -5 -4 -4 -4 -4 -4 -3 -3 -2 -2 -2 -1 ------- Run | Yrd Mat Min Sub Rec Scr Fac Ext Cet Arc Hub Fac Was Fac Arm Lab Res Tes Res Qua Sec Acc Traps Triggered 17 | . . . 3 . . 1 2 . . 6 2 . 2 . . . . . 1 . . Indirectly 4 | . . . . . . . . . . 4 . . . . . . . . . . . Trap Hack Attempts . | . . . . . . . . . . . . . . . . . . . . . . Triggered . | . . . . . . . . . . . . . . . . . . . . . . Disarmed . | . . . . . . . . . . . . . . . . . . . . . . Reprogrammed 4 | . . . . . . . . . . . . . 4 . . . . . . . . Reused 2 | . . . . . . . . . . . . . 2 . . . . . . . . Traps Extracted . | . . . . . . . . . . . . . . . . . . . . . . Installed 1 | . . . 1 . . . . . . . . . . . . . . . . . . Triggered 2 | . . . . . . . . . . . . . 2 . . . . . . . . Machines | -11 -10 -10 -10 -7 -7 -5 -5 -5 -5 -5 -4 -4 -4 -4 -4 -3 -3 -2 -2 -2 -1 ---------- Run | Yrd Mat Min Sub Rec Scr Fac Ext Cet Arc Hub Fac Was Fac Arm Lab Res Tes Res Qua Sec Acc Machines Disabled 94 | . . . 4 . . 9 7 . 4 9 5 . 10 6 5 . 10 . 5 12 8 Max in Single Turn 4 | . . . 2 . . 1 1 . 1 2 4 . 4 1 1 . 2 . 1 3 1 Garrison Access 6 | . . . . . . . . . . 1 1 . 1 . . . . . . . 3 Network Hub 1 | . . . . . . . . . . 1 . . . . . . . . . . . Energy Cycler 2 | . . . . . . . 1 . . . . . . . . . . . . . 1 Machines Repaired . | . . . . . . . . . . . . . . . . . . . . . . Machines Dismantled 3 | . . . . . . . 2 . . 1 . . . . . . . . . . . Machines Sabotaged . | . . . . . . . . . . . . . . . . . . . . . . Overloaded Fab Kills . | . . . . . . . . . . . . . . . . . . . . . . Hacking | -11 -10 -10 -10 -7 -7 -5 -5 -5 -5 -5 -4 -4 -4 -4 -4 -3 -3 -2 -2 -2 -1 --------- Run | Yrd Mat Min Sub Rec Scr Fac Ext Cet Arc Hub Fac Was Fac Arm Lab Res Tes Res Qua Sec Acc Machines Accessed 93 | . 10 . 3 12 3 7 8 . . 3 4 . 9 3 . 3 10 2 12 4 . Terminals 59 | . 8 . . 5 . 3 8 . . 3 2 . 5 2 . 2 5 1 11 4 . Fabricators 3 | . . . . . . . . . . . . . . 1 . . 2 . . . . Repair Stations 4 | . 1 . . . . 1 . . . . . . 1 . . . 1 . . . . Recycling Units 13 | . 1 . . 7 . 2 . . . . 1 . 2 . . . . . . . . Scanalyzers 4 | . . . . . . . . . . . . . . . . . 2 1 1 . . Garrison Access 4 | . . . . . . 1 . . . . 1 . 1 . . 1 . . . . . Total Hacks 317 | . 39 . 3 35 18 18 12 . . 11 14 . 36 14 . 6 37 6 64 4 . Successful 145 | . 18 . 3 22 18 6 3 . . 5 6 . 14 8 . 2 12 4 22 2 . Failed 171 | . 20 . . 13 . 12 9 . . 6 8 . 22 6 . 4 25 2 42 2 . Catastrophic 38 | . 3 . . 2 . 2 4 . . 1 2 . 5 1 . 2 3 1 10 2 . Database Lockouts 1 | . 1 . . . . . . . . . . . . . . . . . . . . Manual 184 | . 30 . . 26 . 11 4 1 . 9 8 . 15 10 . 3 23 4 38 2 . Terminals 218 | . 29 . . 15 . 10 12 . . 11 11 . 20 11 . 4 24 5 62 4 . Fabricators 8 | . . . . . . . . . . . . . . 3 . . 5 . . . . Repair Stations 12 | . 3 . . . . 3 . . . . . . 3 . . . 3 . . . . Recycling Units 44 | . 7 . . 20 . 4 . . . . 1 . 12 . . . . . . . . Scanalyzers 8 | . . . . . . . . . . . . . . . . . 5 1 2 . . Garrison Access 6 | . . . . . . 1 . . . . 2 . 1 . . 2 . . . . . Terminal Hacks 64 | . 7 . 3 1 18 1 3 . . 1 3 . 5 2 . 2 2 2 12 2 . Record 16 | . . . 1 . 12 . . . . . . . . . . 1 . . 2 . . Part Schematic 2 | . 1 . . . . . . . . . . . . . . 1 . . . . . Robot Analysis 10 | . 2 . . 1 6 . . . . . . . . . . . . . 1 . . Prototype ID Bank 1 | . 1 . . . . . . . . . . . . . . . . . . . . Open Door 6 | . . . 1 . . . 3 . . . . . . . . . . . 1 1 . Branch Access Points 2 | . . . . . . . . . . . . . 1 . . . . 1 . . . Emergency Access Points 1 | . . . . . . . . . . . . . . . . . . . 1 . . Terminal Index 4 | . 1 . . . . . . . . 1 . . . . . . 1 . 1 . . Recycling Unit Index 1 | . . . . . . 1 . . . . . . . . . . . . . . . Alert Level 4 | . . . . . . . . . . . 1 . . 1 . . 1 1 . . . Unreport Threat 4 | . . . . . . . . . . . 1 . 2 . . . . . 1 . . Locate Traps 4 | . 1 . . . . . . . . . . . 1 1 . . . . 1 . . Reprogram Traps 1 | . . . . . . . . . . . . . 1 . . . . . . . . Patrol Status 1 | . . . . . . . . . . . . . . . . . . . 1 . . Hauler Manifests 2 | . . . . . . . . . . . 1 . . . . . . . 1 . . Registered Components 2 | . 1 . . . . . . . . . . . . . . . . . 1 . . Zone Layout 1 | . . . . . . . . . . . . . . . . . . . 1 . . Proto ID Catalog 1 | . . . 1 . . . . . . . . . . . . . . . . . . Activate Exoskeleton 1 | . . . . . . . . . . . . . . . . . . . . 1 . Fabricator Hacks 2 | . . . . . . . . . . . . . . 1 . . 1 . . . . Network Status 1 | . . . . . . . . . . . . . . 1 . . . . . . . Load Schematic 1 | . . . . . . . . . . . . . . . . . 1 . . . . Repair Station Hacks 5 | . 1 . . . . 2 . . . . . . 2 . . . . . . . . Scan Component 3 | . 1 . . . . 1 . . . . . . 1 . . . . . . . . Repair 2 | . . . . . . 1 . . . . . . 1 . . . . . . . . Recycling Unit Hacks 8 | . 1 . . 6 . . . . . . . . 1 . . . . . . . . Retrieve Components 8 | . 1 . . 6 . . . . . . . . 1 . . . . . . . . Scanalyzer 2 | . . . . . . . . . . . . . . . . . 1 1 . . . Insert Component 2 | . . . . . . . . . . . . . . . . . 1 1 . . . Garrison Access Hacks 1 | . . . . . . . . . . . 1 . . . . . . . . . . Seal Access 1 | . . . . . . . . . . . 1 . . . . . . . . . . Unauthorized Hacks 63 | . 9 . . 15 . 3 . . . 4 2 . 6 5 . . 8 1 10 . . Terminals 44 | . 7 . . 6 . 2 . . . 4 1 . 2 4 . . 7 1 10 . . Track 6 | . . . . . . . . . . 1 . . . 1 . . 2 . 2 . . Botnet 15 | . 2 . . 2 . 1 . . . 2 1 . 2 1 . . 2 1 1 . . Disrupt 2 | . . . . . . . . . . . . . . 1 . . . . 1 . . Operators 4 | . . . . . . 1 . . . . . . . 1 . . 1 . 1 . . Skim 17 | . 5 . . 4 . . . . . 1 . . . . . . 2 . 5 . . Fabricators 2 | . . . . . . . . . . . . . . 1 . . 1 . . . . Liberate 1 | . . . . . . . . . . . . . . 1 . . . . . . . Recompile 1 | . . . . . . . . . . . . . . . . . 1 . . . . Repair Stations . | . . . . . . . . . . . . . . . . . . . . . . Recycling Units 17 | . 2 . . 9 . 1 . . . . 1 . 4 . . . . . . . . Monitor 1 | . . . . . . . . . . . . . 1 . . . . . . . . Reject 2 | . 1 . . . . . . . . . . . 1 . . . . . . . . Recyclers 2 | . . . . 1 . . . . . . . . 1 . . . . . . . . Mask 3 | . 1 . . 1 . . . . . . . . 1 . . . . . . . . Tunnel 7 | . . . . 7 . . . . . . . . . . . . . . . . . Scrapoids 2 | . . . . . . 1 . . . . 1 . . . . . . . . . . Scanalyzers . | . . . . . . . . . . . . . . . . . . . . . . Garrison Access . | . . . . . . . . . . . . . . . . . . . . . . Data Cores Recovered 3 | . . . . . . . . . . . . . . 1 . . . . 1 1 . Used 1 | . . . . . . . . . . . . . . . . . . . 1 . . Hacking Detections 71 | . 10 . . 10 . 7 5 . . 3 3 . 8 2 . 3 8 1 9 2 . Full Trace Events 3 | . 1 . . . . . 1 . . . 1 . . . . . . . . . . Feedback Events 2 | . 1 . . . . . . . . . 1 . . . . . . . . . . Corruption 2 | . 1 . . . . . . . . . 1 . . . . . . . . . . Feedback Blocked . | . . . . . . . . . . . . . . . . . . . . . . Robot Schematics Acquired . | . . . . . . . . . . . . . . . . . . . . . . Robots Built . | . . . . . . . . . . . . . . . . . . . . . . Authchips . | . . . . . . . . . . . . . . . . . . . . . . Time . | . . . . . . . . . . . . . . . . . . . . . . Total Robot Build Rating . | . . . . . . . . . . . . . . . . . . . . . . Part Schematics Acquired 2 | . 1 . . . . . . . . . . . . . . 1 . . . . . Parts Built . | . . . . . . . . . . . . . . . . . . . . . . Authchips . | . . . . . . . . . . . . . . . . . . . . . . Time . | . . . . . . . . . . . . . . . . . . . . . . Total Part Build Rating . | . . . . . . . . . . . . . . . . . . . . . . Parts Repaired 2 | . . . . . . 1 . . . . . . 1 . . . . . . . . Time 130 | . . . . . . 22 . . . . . . 108 . . . . . . . . Parts Recycled . | . . . . . . . . . . . . . . . . . . . . . . Recycled Matter . | . . . . . . . . . . . . . . . . . . . . . . Retrieved Matter . | . . . . . . . . . . . . . . . . . . . . . . Retrieved Components 23 | . 10 . . 13 . . . . . . . . . . . . . . . . . Parts Scanalyzed . | . . . . . . . . . . . . . . . . . . . . . . Part Schematics Acquired . | . . . . . . . . . . . . . . . . . . . . . . Parts Damaged . | . . . . . . . . . . . . . . . . . . . . . . Bothacking | -11 -10 -10 -10 -7 -7 -5 -5 -5 -5 -5 -4 -4 -4 -4 -4 -3 -3 -2 -2 -2 -1 ------------ Run | Yrd Mat Min Sub Rec Scr Fac Ext Cet Arc Hub Fac Was Fac Arm Lab Res Tes Res Qua Sec Acc Used RIF Installer . | . . . . . . . . . . . . . . . . . . . . . . Robots Hacked 10 | . . . . . 4 2 . 1 . 1 1 . 1 . . . . . . . . Non-combat 3 | . . . . . . 2 . . . . 1 . . . . . . . . . . Combat 5 | . . . . . 4 . . 1 . . . . . . . . . . . . . Robot Hacks Applied 8 | . . . . . 4 2 . 1 . . 1 . . . . . . . . . . parse_system 5 | . . . . . 4 . . 1 . . . . . . . . . . . . . find_chute 2 | . . . . . . 1 . . . . 1 . . . . . . . . . . find_station 1 | . . . . . . 1 . . . . . . . . . . . . . . . Manual 2 | . . . . . . . . . . 1 . . 1 . . . . . . . . Relay Couplers Released 7 | . . . . . . . . . . 3 . . 1 . . . . . . . 3 Machine Destruction 7 | . . . . . . . . . . 3 . . 1 . . . . . . . 3 Fabnet Peak Effective % . | . . . . . . . . . . . . . . . . . . . . . . Robots Rewired 10 | . . . . . . . 7 . . . . . . 3 . . . . . . . Allies Hacked 2 | . . . . . . . . . . 1 . . 1 . . . . . . . . Hacks Repelled . | . . . . . . . . . . . . . . . . . . . . . . Allies | -11 -10 -10 -10 -7 -7 -5 -5 -5 -5 -5 -4 -4 -4 -4 -4 -3 -3 -2 -2 -2 -1 -------- Run | Yrd Mat Min Sub Rec Scr Fac Ext Cet Arc Hub Fac Was Fac Arm Lab Res Tes Res Qua Sec Acc Total Allies 54 | . . 1 . . . 5 15 5 . . 5 19 . 3 . . . . . 1 . Largest Group 19 | . . 1 1 . . 5 13 13 9 9 5 19 13 3 . . . . . 1 1 Highest-Rated Group 1204 | . . 31 31 . . 238 532 818 593 593 235 684 484 168 . . . . . 1204 1204 Highest-Rated Ally 1204 | . . 31 31 . . 50 159 159 96 96 47 50 46 56 . . . . . 1204 1204 Total Orders 41 | . . . . . . 3 6 . 1 11 1 . . . . 19 . . . . . STAY 15 | . . . . . . . 3 . 1 10 1 . . . . . . . . . . FOLLOW 4 | . . . . . . . 3 . . 1 . . . . . . . . . . . EXPLORE 10 | . . . . . . 1 . . . . . . . . . 9 . . . . . RETURN 12 | . . . . . . 2 . . . . . . . . . 10 . . . . . Ally Attacks 798 | . . 10 3 . . 55 136 45 27 94 22 166 39 8 . . . . . 25 168 Total Damage 33718 | . . 124 43 . . 1045 2703 1139 824 2832 617 4086 856 376 . . . . . 2261 16812 Kills 120 | . . 2 . . . 10 16 5 3 20 6 7 3 1 . . . . . 3 44 Allies Corrupted 2 | . . . . . . . . . . . . . 2 . . . . . . . . Allies Melted 1 | . . . . . . . . . . . . 1 . . . . . . . . . Intel | -11 -10 -10 -10 -7 -7 -5 -5 -5 -5 -5 -4 -4 -4 -4 -4 -3 -3 -2 -2 -2 -1 ------- Run | Yrd Mat Min Sub Rec Scr Fac Ext Cet Arc Hub Fac Was Fac Arm Lab Res Tes Res Qua Sec Acc Active Infowar (turns) 21471 | 63 1323 1100 2922 . . 994 1705 573 317 968 1022 906 880 1041 591 762 1604 343 1441 1746 1170 Optics 2604 | . . . 484 . . . . . . . . . . 32 . . . . . 928 1160 Sensors 6871 | . . . . . . . . . . . 537 892 68 . . 711 1476 334 1198 1064 591 A.S.S. 279 | . . . . . . . . . . . . . . 279 . . . . . . . Terrain 7920 | . . . . . . 75 . . 297 544 867 . 533 704 591 696 1219 330 991 502 571 Structural 2 | . . . . . . . 2 . . . . . . . . . . . . . . Seismic 7534 | 63 1323 1100 2438 . . 520 47 . 82 842 419 . 377 323 . . . . . . . Jamming 14989 | . . . . . . 994 1705 573 317 968 996 885 880 1039 591 762 1604 343 1390 1628 314 Robot Analysis Total 10 | . 2 . . 1 6 . . . . . . . . . . . . . 1 . . Derelict Logs Recovered 8 | . . 2 1 . 5 . . . . . . . . . . . . . . . . Drone Launches 16 | . . . . . . 2 . . . . . . . . . 14 . . . . . Drone Recoveries 13 | . . . . . . 2 . . . . . . . . . 11 . . . . . Exploration | -11 -10 -10 -10 -7 -7 -5 -5 -5 -5 -5 -4 -4 -4 -4 -4 -3 -3 -2 -2 -2 -1 ------------- Run | Yrd Mat Min Sub Rec Scr Fac Ext Cet Arc Hub Fac Was Fac Arm Lab Res Tes Res Qua Sec Acc Turns Passed 33860 | 109 1441 2382 4422 4549 3817 999 1735 573 1086 1014 1023 906 933 1041 591 762 1604 343 1596 1764 1170 Spaces Moved 15461 | 37 752 891 2415 1918 2100 387 720 194 477 382 439 555 452 398 198 368 678 154 726 842 378 Core . | . . . . . . . . . . . . . . . . . . . . . . Treads 7008 | 37 752 239 80 780 . . . 166 477 382 432 29 10 393 198 368 678 154 726 755 352 Legs 6 | . . . . . . . . . . . . 6 . . . . . . . . . Wheels 8334 | . . 652 2335 1138 2100 387 720 28 . . 7 520 442 5 . . . . . . . Hover . | . . . . . . . . . . . . . . . . . . . . . . Flight . | . . . . . . . . . . . . . . . . . . . . . . Fastest Speed 80 | 160 160 160 80 100 100 145 145 160 160 160 130 103 110 130 168 167 167 170 161 166 160 Average Speed 165 | 160 160 234 160 147 177 165 156 187 160 160 164 134 142 162 170 169 169 170 165 166 164 Slowest Speed 392 | 160 160 320 320 392 235 205 160 240 160 240 166 280 245 168 248 247 253 170 248 166 166 Overloaded Moves . | . . . . . . . . . . . . . . . . . . . . . . Propulsion Burnouts . | . . . . . . . . . . . . . . . . . . . . . . Robots Hopped . | . . . . . . . . . . . . . . . . . . . . . . Potential Cave-ins 10 | . . . . . . . . . . 1 . . . 9 . . . . . . . Cave-ins Triggered 1 | . . . . . . . . . . . . . . 1 . . . . . . . Microwarps 10 | . . . . . . . . . . . . . . . . . . . . 7 3 Exploration Rate (%) 59 | 3 91 99 96 99 95 10 86 57 97 51 10 95 18 30 92 29 87 6 79 60 14 Regions Visited 21 Branch Regions 13 Pre-discovered Areas 10 | . 3 . . 7 . . . . . . . . . . . . . . . . . Known Exits Taken 10 | . 1 1 . . 1 1 . . . . . . 1 . 1 1 1 1 . 1 . Unknown Exits Taken 9 | 1 . . 1 1 . . 1 1 1 1 . . . 1 . . . . 1 . . Scrap Searched 13 | . . 2 3 . 8 . . . . . . . . . . . . . . . . Spaces Dug 215 | . 9 5 8 16 . 22 23 . . 17 9 2 6 14 . 11 30 11 13 19 . Terrain Destroyed 966 | . 40 10 27 19 . 38 39 . 23 77 81 8 131 79 2 15 89 14 27 70 177 Melee 28 | . . . 8 11 . 2 . . . . 4 . . . . . . . 3 . . Projectile 331 | . . . . 8 . 23 6 . 23 33 41 8 50 33 2 14 37 14 12 20 7 AOE 578 | . 40 10 19 . . 13 33 . . 44 36 . 81 43 . . 46 . 8 36 169 Terrain Rammed . | . . . . . . . . . . . . . . . . . . . . . . Walls Destroyed . | . . . . . . . . . . . . . . . . . . . . . . Machines Disabled . | . . . . . . . . . . . . . . . . . . . . . . Actions | -11 -10 -10 -10 -7 -7 -5 -5 -5 -5 -5 -4 -4 -4 -4 -4 -3 -3 -2 -2 -2 -1 --------- Run | Yrd Mat Min Sub Rec Scr Fac Ext Cet Arc Hub Fac Was Fac Arm Lab Res Tes Res Qua Sec Acc Total 21741 | 60 936 1062 2828 3574 2202 618 1144 382 719 583 640 696 642 687 417 468 1005 211 1034 1073 760 Wait 2839 | 1 99 60 64 1463 15 53 185 66 125 22 36 67 48 51 129 25 55 23 61 45 146 Move 15338 | 36 751 890 2414 1917 2099 386 719 193 476 381 439 554 452 397 197 367 677 153 725 761 354 Hop . | . . . . . . . . . . . . . . . . . . . . . . Pick Up 573 | 4 20 13 112 71 52 16 17 28 31 8 33 12 15 50 8 6 24 2 17 18 16 Fast Attach 150 | 1 2 1 16 16 3 7 4 6 5 5 2 6 2 11 6 3 12 . 28 8 6 Attach 171 | . . 1 8 4 2 18 4 12 7 10 11 10 6 20 1 7 8 2 12 9 19 Detach 70 | . . . 3 7 . 6 1 . 2 1 6 3 . 3 1 4 6 . 10 7 10 Swap 577 | 3 11 24 54 8 2 33 42 20 8 45 32 9 42 33 2 10 51 9 43 63 33 Drop 459 | 2 18 5 61 42 25 14 16 34 12 7 19 17 8 40 11 10 40 . 48 19 11 Fire 1317 | 13 35 44 52 11 . 77 82 13 53 98 47 18 67 78 62 34 129 21 85 143 155 Melee 136 | . . 24 37 35 4 6 . 10 . . 13 . . 3 . . . . 4 . . Ram . | . . . . . . . . . . . . . . . . . . . . . . Kick . | . . . . . . . . . . . . . . . . . . . . . . Crush 2 | . . . . . . . . . . 1 . . . . . 1 . . . . . Escape Stasis 26 | . . . . . . . 16 . . . . . . . . . . . . . 10 Rewire 38 | . . . . . . . 38 . . . . . . . . . . . . . . Trap 1 | . . . 1 . . . . . . . . . . . . . . . . . . Miscellaneous 44 | . . . 6 . . 2 20 . . 5 2 . 2 1 . 1 3 1 1 . . Route ------- -11/Scrapyard -10/Materials (discovered 6 exits: [*Mat x3] / *Min x2 / *Sub) -10/Mines (discovered 4 exits: [*Mat x2] / [*Exi] / *Sub) -10/Subcaves (discovered 3 exits: [*Mat x2] / *Rec) -7/Recycling (discovered 2 exits: *Fac / *Scr) -7/Scraptown (discovered 2 exits: *Fac x2) -5/Factory (discovered 3 exits: *Upp x2 / *Ext) -5/Extension (discovered 2 exits: *Fac / *Cet) -5/Cetus (discovered 2 exits: *Fac / [*Arc]) -5/Archives (discovered 3 exits: *Fac / *Hub x2) -5/Hub_04(d) -4/Factory (discovered 2 exits: *Res / Arm) -4/Waste -4/Factory (discovered 4 exits: Res / Upp x2 / *Arm) -4/Armory -4/Lab -3/Research (discovered 3 exits: *Res x2 / *Tes) -3/Testing -2/Research (discovered 2 exits: *Qua x2) -2/Quarantine (discovered 3 exits: *Acc / *Sec / [*Frg]) -2/Section 7 -1/Access Tau Ceti IV Orbit History --------- Turn | Location | Event 27 | -11/Scrapyard | Discovered new exit (range 3) 110 | -11/Scrapyard | Entered Materials 332 | -10/Materials | Build established: Mutant 472 | -10/Materials | Discovered new exit (range 13) 554 | -10/Materials | Discovered new exit (range 16) 586 | -10/Materials | Central database locked down 837 | -10/Materials | Discovered new exit (range 12) 1168 | -10/Materials | Discovered new exit (range 6) 1212 | -10/Materials | Discovered new exit (range 10) 1410 | -10/Materials | Learned Storage emergency access door positions 1474 | -10/Materials | Learned location of Subcaves (-10) 1492 | -10/Materials | Loaded intel: 11 interactive machine locations 1498 | -10/Materials | Learned location of 1 exit from Storage 1499 | -10/Materials | Learned location of 1 exit from Recycling 1500 | -10/Materials | Identified exit to Mines 1525 | -10/Materials | Learned location of Recycling (-7) 1551 | -10/Materials | Learned location of 3 exits from Materials 1551 | -10/Materials | Entered Mines 1601 | -10/Mines | Found DCF Scrap (12 items) 2307 | -10/Mines | Learned Materials emergency access door positions 2325 | -10/Mines | Identified exit to Subcaves 2395 | -10/Mines | Deemed a non-threat by the Exiles lab entrance 2395 | -10/Mines | Discovered new exit (range 5) 2609 | -10/Mines | Excavation squad dispatched 2609 | -10/Mines | A large section of the Mines collapsed 3047 | -10/Mines | Escorted by a lone wolf Derelict 3349 | -10/Mines | Discovered new exit (range 6) 3471 | -10/Mines | Discovered new exit (range 15) 3933 | -10/Mines | Entered Subcaves 3933 | -10/Subcaves | Accompanied by 1 ally 4177 | -10/Subcaves | Visited 4L-MR0's lab 4199 | -10/Subcaves | Found Rainbow Chip 4328 | -10/Subcaves | Shifting Twisted Machinery released Piercing Trap 4340 | -10/Subcaves | Shifting Twisted Machinery released Battle Rifle 4718 | -10/Subcaves | Core integrity fell below 50% 5036 | -10/Subcaves | Build established: Scavenger-Mutant 6115 | -10/Subcaves | Shifting Twisted Machinery released Battle Cannon 6446 | -10/Subcaves | Discovered new exit (range 14) 6466 | -10/Subcaves | A swath of the cavern ceiling suddenly collapsed 6500 | -10/Subcaves | Learned 2 Materials zone layouts 7141 | -10/Subcaves | Discovered new exit (range 5) 7206 | -10/Subcaves | Build established: Mutant 7378 | -10/Subcaves | Ambushed by angry Subdweller bent on revenge 7561 | -10/Subcaves | Discovered new exit (range 12) 8055 | -10/Subcaves | Build established: Derelict-Mutant 8118 | -10/Subcaves | Core integrity fell below 20% 8355 | -10/Subcaves | Entered Recycling 8356 | -7/Recycling | Identified exit to Factory 8837 | -7/Recycling | Build established: Mutant 9286 | -7/Recycling | Scanned before Scraplab entrance 9307 | -7/Recycling | Entered Scraplab 10030 | -7/Recycling | Build established: Hauler-Mutant 10772 | -7/Recycling | Build established: Scavenger-Mutant 12613 | -7/Recycling | Build established: Hauler-Mutant 12903 | -7/Recycling | Discovered new exit (range 2) 12904 | -7/Recycling | Entered Scraptown 12904 | -7/Scraptown | System corruption cleaned by C-Scrubber 12952 | -7/Scraptown | Heard Great Nut preacher, LISTEN AND RECITE! 13331 | -7/Scraptown | Visited Fellowship of the Rings 13380 | -7/Scraptown | Visited Bundlers 13498 | -7/Scraptown | Visited Comm Corps 13553 | -7/Scraptown | Visited Supply Room 13608 | -7/Scraptown | Visited Spacefarers 14170 | -7/Scraptown | Discovered exit to Factory (range 5) 14222 | -7/Scraptown | Scanned Subdweller tech in exchange for log data 14226 | -7/Scraptown | Learned location of 2 exits from Research 14227 | -7/Scraptown | Learned Factory terminal intel 14232 | -7/Scraptown | Learned location of 1 exit from Factory 14381 | -7/Scraptown | Visited Cave Peace 14426 | -7/Scraptown | Visited CPS Storage 14461 | -7/Scraptown | Visited UFD Registry 14461 | -7/Scraptown | Registered with UFD as "Phaseunit" 14498 | -7/Scraptown | Visited Analyses Database 14535 | -7/Scraptown | Visited Infowarlord's Domain 14577 | -7/Scraptown | Visited Abandonware Association 14594 | -7/Scraptown | Learned abandonware demo "POISON.EXE" 14657 | -7/Scraptown | Delivered Scrap Shield to a Scientist 14817 | -7/Scraptown | Visited Chapter 10 14876 | -7/Scraptown | Visited DA-N13 Charitable Foundation 14884 | -7/Scraptown | Found DCF Scrap (30 items) 14988 | -7/Scraptown | Visited Science Testing Area 15005 | -7/Scraptown | Visited Observation Area 15071 | -7/Scraptown | Visited Scrapoid Research Area 15145 | -7/Scraptown | Visited Curators Association 15733 | -7/Scraptown | Guru changed UFD alias to "Bulletcircuit" 16123 | -7/Scraptown | Found Exp. Terrain Scanner 16286 | -7/Scraptown | Found Scrap Suit 16371 | -7/Scraptown | Discovered exit to Factory (range 3) 16721 | -7/Scraptown | Entered Factory 16721 | -5/Factory | Evolved 10 slots: Power x1, Propulsion x3, Utility x6 16722 | -5/Factory | Identified exit to Upper Caves 16723 | -5/Factory | Identified exit to Extension 16724 | -5/Factory | Loaded intel: 28 terminal locations 17167 | -5/Factory | Repaired Imp. Shield Generator 17360 | -5/Factory | Discovered exit to Upper Caves (range 15) 17460 | -5/Factory | System corruption reached 10% 17488 | -5/Factory | Lost 4 parts (1n3u) 17542 | -5/Factory | Scrapoid reinforcements arrived 17659 | -5/Factory | P-70 Sage assimilated allied 05F06-D 17720 | -5/Factory | Entered Extension 17720 | -5/Extension | Accompanied by 3 allies 17780 | -5/Extension | Found Imp. Powered Armor 18120 | -5/Extension | Disrupted transfer network 18211 | -5/Extension | Rescued a captive Derelict 18278 | -5/Extension | Rescued a captive Derelict 18454 | -5/Extension | Rescued a captive Derelict 18632 | -5/Extension | Spotted B-75 Beast 18644 | -5/Extension | Allies destroyed B-75 Beast 18661 | -5/Extension | Spotted B-75 Beast 18673 | -5/Extension | Allies destroyed B-75 Beast 18923 | -5/Extension | Rescued a captive Derelict 18924 | -5/Extension | Rescued a captive Derelict 18974 | -5/Extension | Rescued a captive Derelict 19040 | -5/Extension | Energy Cycler disabled 19048 | -5/Extension | Rescued a captive Derelict 19077 | -5/Extension | Rescued A7 19382 | -5/Extension | Discovered new exit (range 10) 19384 | -5/Extension | Discovered new exit (range 6) 19410 | -5/Extension | Disrupted transfer network 19437 | -5/Extension | Destroyed 7 combat bots 19455 | -5/Extension | Entered Cetus 19455 | -5/Cetus | Accompanied by 13 allies (A7) 19460 | -5/Cetus | Acquired a Cetus Manufacturing Module code from A7 19478 | -5/Cetus | Spotted Cetus Guard 19478 | -5/Cetus | Spotted Cetus Guard 19482 | -5/Cetus | Spotted Cetus Guard 19482 | -5/Cetus | Spotted Cetus Guard 19494 | -5/Cetus | Allies destroyed Cetus Guard 19495 | -5/Cetus | Allies destroyed Cetus Guard 19499 | -5/Cetus | Destroyed Cetus Guard 19502 | -5/Cetus | Allies destroyed Cetus Guard 19525 | -5/Cetus | Attached Rainbow Chip, gained temporary slots: Power, Propulsion, Utility, Weapon 19532 | -5/Cetus | Lost 5 allies 19629 | -5/Cetus | Started Cetus Manufacturing Module 19648 | -5/Cetus | Discovered new exit (range 16) 19654 | -5/Cetus | Manufactured an Enhanced Grunt 19679 | -5/Cetus | Manufactured an Enhanced Grunt 19688 | -5/Cetus | Spotted Cetus Guard 19688 | -5/Cetus | Spotted Cetus Guard 19694 | -5/Cetus | Spotted Cetus Guard 19695 | -5/Cetus | Allies destroyed Cetus Guard 19698 | -5/Cetus | Destroyed Cetus Guard 19698 | -5/Cetus | Spotted Cetus Guard 19701 | -5/Cetus | Destroyed Cetus Guard 19704 | -5/Cetus | Manufactured an Enhanced Grunt 19704 | -5/Cetus | Destroyed Cetus Guard 19716 | -5/Cetus | Discovered new exit (range 15) 19726 | -5/Cetus | Met Revision 17 19729 | -5/Cetus | Manufactured an Enhanced Grunt 19754 | -5/Cetus | Manufactured an Enhanced Grunt 19892 | -5/Cetus | Murdered A7 19894 | -5/Cetus | Extracted ID and sensor layout for unrecognized location from A7's data core 19898 | -5/Cetus | Found Prototype Protection 19898 | -5/Cetus | Identified Med. Regenerative Plating 20028 | -5/Cetus | Entered Archives 20028 | -5/Archives | Accompanied by 9 allies 20044 | -5/Archives | Build established: Scavenger-Tank 20085 | -5/Archives | Discovered new exit (range 14) 20198 | -5/Archives | Discovered new exit (range 15) 20410 | -5/Archives | Discovered new exit (range 15) 21114 | -5/Archives | Entered Hub_04(d) 21114 | -5/Hub_04(d) | Accompanied by 9 allies 21545 | -5/Hub_04(d) | Infected Heavy with POISON.EXE 21596 | -5/Hub_04(d) | Spotted B-75 Beast 21606 | -5/Hub_04(d) | Allies destroyed B-75 Beast 21714 | -5/Hub_04(d) | First assault squad dispatched 21789 | -5/Hub_04(d) | Destroyed 7 combat bots 21789 | -5/Hub_04(d) | Lost 4 allies 21852 | -5/Hub_04(d) | Destroyed 8 combat bots 21888 | -5/Hub_04(d) | Build established: Scavenger-Mutant 21902 | -5/Hub_04(d) | Discovered new exit (range 16) 21976 | -5/Hub_04(d) | Network Hub disabled 21989 | -5/Hub_04(d) | Spotted Lightning 21992 | -5/Hub_04(d) | Spotted Lightning 21998 | -5/Hub_04(d) | Spotted Lightning 22058 | -5/Hub_04(d) | System corruption reached 30% 22066 | -5/Hub_04(d) | Destroyed Lightning 22087 | -5/Hub_04(d) | Spotted Lightning 22087 | -5/Hub_04(d) | Spotted Lightning 22088 | -5/Hub_04(d) | Spotted Lightning 22128 | -5/Hub_04(d) | Entered Factory 22128 | -4/Factory | Evolved 2 slots: Propulsion x1, Weapon x1 22134 | -4/Factory | Lost 9 parts (2p2n2u3w) 22400 | -4/Factory | Discovered new exit (range 24) 22519 | -4/Factory | Scrapoids reinforcements arrived? 22548 | -4/Factory | Identified exit to Research 22646 | -4/Factory | Found Scrap Suit 22663 | -4/Factory | Murdered 4 allies 22705 | -4/Factory | Discovered new exit (range 29) 23067 | -4/Factory | Build established: Scavenger-Tank 23128 | -4/Factory | First assault squad dispatched 23151 | -4/Factory | Sucked down chute 23151 | -4/Factory | Entered Waste 23179 | -4/Waste | Lost 4 parts (2p1u1w) 23179 | -4/Waste | Spotted C-40 Crusher 23207 | -4/Waste | Spotted C-40 Crusher 23218 | -4/Waste | Spotted C-40 Crusher 23229 | -4/Waste | Crushed by Compactor (1 part destroyed, 1 dropped) 23256 | -4/Waste | Spotted C-40 Crusher 23266 | -4/Waste | Warlord forces began an assault 23278 | -4/Waste | Allies destroyed C-40 Crusher 23287 | -4/Waste | Allies destroyed C-40 Crusher 23308 | -4/Waste | Allies destroyed C-40 Crusher 23309 | -4/Waste | Lost 3 allies 23325 | -4/Waste | Spotted C-40 Crusher 23334 | -4/Waste | Allies destroyed C-40 Crusher 23337 | -4/Waste | Spotted C-40 Crusher 23352 | -4/Waste | Allies destroyed C-40 Crusher 23365 | -4/Waste | Destroyed C-40 Crusher 23484 | -4/Waste | Discovered new exit (range 13) 23538 | -4/Waste | Build established: Scavenger-Mutant 24015 | -4/Waste | Build established: Scavenger-Tank 24057 | -4/Waste | Entered Factory 24057 | -4/Factory | Accompanied by 13 allies 24284 | -4/Factory | Repaired Centrium Heavy Treads 24491 | -4/Factory | Garrison activated, responded to threat 24536 | -4/Factory | Lost 10 allies 24540 | -4/Factory | Discovered exit to Research (range 28) 24589 | -4/Factory | Identified exit to Upper Caves 24589 | -4/Factory | Identified exit to Armory 24722 | -4/Factory | Infected Heavy with POISON.EXE 24798 | -4/Factory | Lost 3 parts (2n1w) 24990 | -4/Factory | Entered Armory 25018 | -4/Armory | Lost 10 parts (2p1n5u2w) 25436 | -4/Armory | Crushed by falling debris 25490 | -4/Armory | P-70 Sage assimilated allied Assassin 7a 25493 | -4/Armory | P-70 Sage assimilated allied Assassin 7c 25501 | -4/Armory | P-70 Sage assimilated allied Assassin 7b 25638 | -4/Armory | Found Active Sensor Suite 25814 | -4/Armory | Build established: Scavenger-Skirmisher 25918 | -4/Armory | Found Hvy. Reactive Plating 25925 | -4/Armory | Found Hvy. Reactive Plating 25990 | -4/Armory | First assault squad dispatched 26018 | -4/Armory | Discovered new exit (range 5) 26031 | -4/Armory | Entered Lab 26031 | -4/Lab | Discovered exit to Research (range 9) 26050 | -4/Lab | Hidden lab's door opened automatically 26050 | -4/Lab | Sensor layout match revealed 26051 | -4/Lab | Gained access to the hidden lab's interior 26093 | -4/Lab | Unable to decrypt terminal 26200 | -4/Lab | Found Alien Artifact 26347 | -4/Lab | Found Alien Artifact 26354 | -4/Lab | Build established: Scavenger-Mutant 26377 | -4/Lab | Found Alien Artifact 26377 | -4/Lab | Identified Integrated Reactor 26377 | -4/Lab | Installed Integrated Reactor, increased core energy generation (+10) 26409 | -4/Lab | Found Alien Artifact 26409 | -4/Lab | Identified Core Expander 26409 | -4/Lab | Installed Core Expander, added new Weapon slot 26488 | -4/Lab | Found Prototype Protection 26488 | -4/Lab | Identified Exp. Powered Armor 26493 | -4/Lab | Found Prototype Hackware 26501 | -4/Lab | Found Prototype Energy Cannon 26501 | -4/Lab | Identified Potential Cannon 26506 | -4/Lab | Found Prototype Energy Gun 26506 | -4/Lab | Identified Hyp. EM Gauss Rifle 26622 | -4/Lab | Entered Research 26622 | -3/Research | Evolved 2 slots: Power x1, Utility x1 26623 | -3/Research | Identified exit to Testing 26624 | -3/Research | Identified exit to Research 26822 | -3/Research | Revision forces began assault on 0b10 26886 | -3/Research | Met up with Revision 17++ 26889 | -3/Research | Build established: Scavenger-Tank 26934 | -3/Research | Found Prototype Protection 26934 | -3/Research | Identified Centrium Heavy Armor Plating 27322 | -3/Research | Research terminal network offline 27384 | -3/Research | Entered Testing 27473 | -3/Testing | Found Prototype Energy Cannon 27473 | -3/Testing | Identified Imp. Potential Cannon 27685 | -3/Testing | Identified Core Reset Matrix 27799 | -3/Testing | Spotted Striker 27824 | -3/Testing | Spotted PP-GUEP5QUHXC 27839 | -3/Testing | Destroyed PP-GUEP5QUHXC 28626 | -3/Testing | Found Prototype Ballistic Gun 28626 | -3/Testing | Identified Hyp. Multirail 28688 | -3/Testing | Discovered exit to Research (range 8) 28988 | -3/Testing | Entered Research 28988 | -2/Research | Evolved 2 slots: Utility x2 29008 | -2/Research | Identified Quantum Router 29009 | -2/Research | Identified exit to Quarantine 29289 | -2/Research | Found Prototype Device 29296 | -2/Research | Identified Adv. Kinecellerator 29331 | -2/Research | Entered Quarantine 29338 | -2/Quarantine | Build established: Hacker-Tank 29373 | -2/Quarantine | Identified Transdimensional Reconstructor 29373 | -2/Quarantine | Used Core Reset Matrix 29377 | -2/Quarantine | Detected hypermatrix surge 29377 | -2/Quarantine | Sensed 9 artifacts in vicinity 29542 | -2/Quarantine | Found Unknown Device 29542 | -2/Quarantine | Identified Launcher Loader 29726 | -2/Quarantine | Met incapacitated Sigix Warrior 29726 | -2/Quarantine | Lockdown squad dispatched 29733 | -2/Quarantine | Acquired the access code to the Sigix quarantine chamber 29741 | -2/Quarantine | Unlocked Sigix quarantine chamber 29750 | -2/Quarantine | Found Sigix Containment Pod 29841 | -2/Quarantine | Spotted Lightning 29865 | -2/Quarantine | Spotted Lightning 29868 | -2/Quarantine | Spotted Lightning 29870 | -2/Quarantine | Destroyed Lightning 29873 | -2/Quarantine | Destroyed Lightning 29879 | -2/Quarantine | Destroyed Lightning 29890 | -2/Quarantine | Found Prototype Processor 29890 | -2/Quarantine | Identified Exp. Targeting Computer 29895 | -2/Quarantine | Found Prototype Energy Cannon 29895 | -2/Quarantine | Identified EMDS 29918 | -2/Quarantine | Found Prototype Device 29918 | -2/Quarantine | Identified Exp. EM Shield 30102 | -2/Quarantine | Cryocooling Duct disabled 30117 | -2/Quarantine | Ambient heat levels rising (+20) 30117 | -2/Quarantine | Non-combat units ordered to evacuate 30153 | -2/Quarantine | Learned 4 Research zone layouts 30160 | -2/Quarantine | Build established: Scavenger-Tank 30204 | -2/Quarantine | Discovered new exit (range 8) 30219 | -2/Quarantine | Identified exit to Access 30222 | -2/Quarantine | Learned 4 Access zone layouts 30237 | -2/Quarantine | Found Subatomic Replicator 30238 | -2/Quarantine | Used Subatomic Replicator to replicate Hyp. Multirail 30279 | -2/Quarantine | Learned Research emergency access door positions 30323 | -2/Quarantine | Found Phase Redirector 30363 | -2/Quarantine | Learned 4 Research zone layouts 30428 | -2/Quarantine | Learned Access trap positions 30474 | -2/Quarantine | Learned Section 7 trap positions 30491 | -2/Quarantine | Found Phase Armor 30651 | -2/Quarantine | Spotted Fortress 30691 | -2/Quarantine | Destroyed Fortress 30721 | -2/Quarantine | Found Prototype Reactor 30721 | -2/Quarantine | Identified Vortex Chain Reactor 30733 | -2/Quarantine | Found Vortex Chain Reactor 30754 | -2/Quarantine | Found Prototype Device 30754 | -2/Quarantine | Identified Exp. Force Field 30919 | -2/Quarantine | Discovered new exit (range 6) 30919 | -2/Quarantine | Discovered new exit (range 7) 30927 | -2/Quarantine | Entered Section 7 30928 | -2/Section 7 | Detected hypermatrix surge 30928 | -2/Section 7 | Sensed 25 artifacts in vicinity 30928 | -2/Section 7 | Loaded intel: 18 trap records 31137 | -2/Section 7 | Found Microwarp Drive 31261 | -2/Section 7 | Build established: Alien-Tank 31265 | -2/Section 7 | Spotted S7 Guard 31296 | -2/Section 7 | Destroyed S7 Guard 31319 | -2/Section 7 | Found Corrupted Prototype Protection 31348 | -2/Section 7 | Found Core Membrane 31348 | -2/Section 7 | Installed Core Membrane, gained immunity to corruption 31404 | -2/Section 7 | Spotted S7 Guard 31421 | -2/Section 7 | Destroyed S7 Guard 31435 | -2/Section 7 | Found Integrated Thermoelectric Network 31435 | -2/Section 7 | Installed Integrated Thermoelectric Network, gained heat-energy exchange potential 31467 | -2/Section 7 | Spotted Alpha 7 31467 | -2/Section 7 | Spotted Alpha 7 31491 | -2/Section 7 | Destroyed Alpha 7 31495 | -2/Section 7 | Destroyed Alpha 7 31562 | -2/Section 7 | Destroyed 9 combat bots 31654 | -2/Section 7 | Spotted Executioner 31655 | -2/Section 7 | Spotted Executioner 31667 | -2/Section 7 | Destroyed Executioner 31672 | -2/Section 7 | Destroyed Executioner 31674 | -2/Section 7 | Found Prototype Processor 31674 | -2/Section 7 | Identified Exp. Core Analyzer 31745 | -2/Section 7 | Spotted S7 Guard 31761 | -2/Section 7 | Destroyed S7 Guard 31796 | -2/Section 7 | Discovered exit to Access (range 10) 31867 | -2/Section 7 | Found Integrity Redistributor 31874 | -2/Section 7 | Destroyed 7 combat bots 31957 | -2/Section 7 | Spotted S7 Guard 31978 | -2/Section 7 | Found Core Regenerator 32052 | -2/Section 7 | Spotted B-99 Colossus 32058 | -2/Section 7 | Build established: Scavenger-Tank 32177 | -2/Section 7 | First assault squad dispatched 32218 | -2/Section 7 | Found LRC Inertial Stabilizer 32218 | -2/Section 7 | Installed LRC Inertial Stabilizer, increased mass support (+10) 32229 | -2/Section 7 | Found LRC Energy Well 32229 | -2/Section 7 | Installed LRC Energy Well, increased energy storage capacity (+250) 32487 | -2/Section 7 | Spotted Executioner 32508 | -2/Section 7 | Activated Sigix Exoskeleton 32508 | -2/Section 7 | Received instructions from Sigix Warrior 32510 | -2/Section 7 | Build established: Alien-Tank 32527 | -2/Section 7 | Spotted Executioner 32534 | -2/Section 7 | Destroyed Executioner 32537 | -2/Section 7 | Destroyed Executioner 32635 | -2/Section 7 | Spotted Striker 32640 | -2/Section 7 | Spotted Investigator 32641 | -2/Section 7 | Destroyed Investigator 32649 | -2/Section 7 | Spotted Striker 32653 | -2/Section 7 | Destroyed Striker 32654 | -2/Section 7 | Core integrity fell below 50% 32655 | -2/Section 7 | Spotted Executioner 32657 | -2/Section 7 | Destroyed Executioner 32661 | -2/Section 7 | Identified Hvy. Regenerative Plating 32691 | -2/Section 7 | Entered Access 32691 | -1/Access | Accompanied by 1 ally (Sigix Warrior) 32691 | -1/Access | Evolved 2 slots: Power x1, Utility x1 32693 | -1/Access | Loaded intel: 76 trap records 32697 | -1/Access | Destroyed 22 combat bots 32747 | -1/Access | Destroyed 8 combat bots 32796 | -1/Access | Sigix Exoskeleton integrity reduced to 80% 32829 | -1/Access | Destroyed 16 combat bots 32855 | -1/Access | Energy Cycler disabled 32981 | -1/Access | Destroyed 23 combat bots 33056 | -1/Access | Spotted Investigator 33058 | -1/Access | Destroyed Investigator 33073 | -1/Access | Destroyed Executioner 33129 | -1/Access | Spotted Investigator 33137 | -1/Access | Allies destroyed Investigator 33147 | -1/Access | Build established: Scavenger-Tank 33158 | -1/Access | Destroyed 37 combat bots 33219 | -1/Access | Destroyed Executioner 33226 | -1/Access | Spotted Executioner 33228 | -1/Access | Destroyed Executioner 33234 | -1/Access | Destroyed Striker 33238 | -1/Access | Destroyed Striker 33239 | -1/Access | Spotted Striker 33246 | -1/Access | Destroyed Striker 33267 | -1/Access | Destroyed 14 combat bots 33298 | -1/Access | Spotted Investigator 33298 | -1/Access | Destroyed Investigator 33303 | -1/Access | Sigix Exoskeleton integrity reduced to 60% 33305 | -1/Access | Spotted Executioner 33306 | -1/Access | Destroyed Executioner 33310 | -1/Access | Sterilization system engaged 33328 | -1/Access | Found Prototype Device 33328 | -1/Access | Identified Adv. Kinecellerator 33329 | -1/Access | Destroyed 17 combat bots 33369 | -1/Access | Spotted Striker 33369 | -1/Access | Spotted Striker 33369 | -1/Access | Spotted Striker 33370 | -1/Access | Destroyed Striker 33370 | -1/Access | Destroyed Striker 33374 | -1/Access | Destroyed Striker 33610 | -1/Access | Ambient heat levels rising (+10) 33641 | -1/Access | Destroyed 7 combat bots 33699 | -1/Access | Discovered new exit (range 12) 33735 | -1/Access | Spotted B-99 Colossus 33760 | -1/Access | Ambient heat levels rising (+10) 33765 | -1/Access | Destroyed B-99 Colossus 33771 | -1/Access | Spotted B-99 Colossus 33782 | -1/Access | Sigix Exoskeleton integrity reduced to 40% 33783 | -1/Access | Destroyed B-99 Colossus 33810 | -1/Access | Found Prototype Ballistic Gun 33810 | -1/Access | Identified Multirail 33821 | -1/Access | Used Integrity Redistributor, redistributed integrity from core (-293) 33822 | -1/Access | Used Core Regenerator, restored core integrity (+400) 33823 | -1/Access | Destroyed 11 combat bots 33832 | -1/Access | Found Multirail 33861 | *** | Destroyed 0b10! Last Messages --------------- 33802_ Quantum Shear penetrates Y-72 Warden. 33802_ HV Slug penetrates Y-72 Warden. 33802_ Y-72 Warden suffers critical hit (Destroy). 33802_ Y-72 Warden destroyed. 33802_ HV Slug penetrates Wall. 33810_ Acquired Prototype Ballistic Gun. 33810_ Identified Multirail. 33812_ Acquired Enh. Nova Cannon. 33816_ Dropped Vortex Chain Reactor. 33818_ Acquired Vortex Chain Reactor. 33821_ Integrity redistributed from core (-293). 33822_ Core integrity regenerated (+400). 33826_ Acquired Multirail. Unknown Device melts. Multirail melts. 33828_ Acquired 166 matter. 33832_ Acquired Multirail. [Achievement: Partners In Destruction] Map ----- +----------------------------------------------------+ | ?????????#??? ???##?? ??##?####+???########### | | ?? ????????? ?? ?#######?##?# ? ?? # # | | ? ????????#?? ?? ??##?#?##?## ? ? # # | | ??????????#? ? #?#########? ? # # | | ?????????????? ??#??#########? ? ? ? # " # | | ??????????#? ?? ?????############?#### " # | | ????????????#?#???##??### ] ?## """ " | | ????????? ?###?#?##??#??# ??# " | | ????????? ?????##??##?### "" ??# " | | ?????"????##??#?##?##?### " ## " | | ????????? #?#?????####??# " ##+#######" | | ????????? ##???###?##?#?# " %% ## ######" % | | ?????? ? #??##??##?????#= "" + ! | | ?? ???? ? ??#?#??##?##### # %%!%* | | ?? ?????? ##?#?##?##?#?## # ="###### | | ????????? ##??#?####?#??# +%%##?##?#### | | ??????????#?#????#?###?## =[*#?#?##??## | | ??? ? ????????#?#####?## !%[####????#? | | ? ???????###???##?#?????###########""" #??#?####? | | ????????????#?#??#?#?##??##?###### ### #?#??##?## | | ?? ??????##########?########## ##;#### ######??## | | ???? ???## "??"%% X #?###?###? | | ? ? ????#=! % """" #?#??????? | | # ###% ! ######??#? | | " ^ ] """" %[#?####?### | | " ^ !* "?" "@ [ ##?###???? | | % [^ """ "" #?######?# | | % [ ^ % "?" #####?#??# | | %!"# "?" ##?#??#??# | | =*### "?" " " ###?##??#? | | !%= ??# "?" "" "" #?????#?## | | " * ?#?##########?########## ####### ##??###?## | | " ??????####???????#?#?######?#?## ####???### | | # ?????????????#?#??#?#?#????###??# #?#???#??? | | " # #????#???##?????#????##?#####?# #?###?#### | | ####+#+###???#??????#???? ???????????# #????#?#?# | | ??????###?#?????? ?? ?+ #?#??#???# | | ???????? ????????""??"?? ? # ##???#??#? | | ?????#?###???#? ?????"??????? #????????# | | ???????##???? ???????? ? # #???#?#?## | | ???????##??????? ?"??"?? ?? ? #?#???###? | | ?????#???????????"??""? ? ? ? #???##???# | | ??????##??????????? ?? ?? ??? ???#? ??? | | ??????#??#????????????? ?? ?? ??????????? | | ???????#??????? ????? ??? ??????#???????? | | ????#?#????#???????? ?? ?? ? ??? ????? | | ??????????#????#??#????#??#?? ????#?#??? | | ???????#???####???####???###????##??#???? | | #########????????###???#????????#???????? ???#???? | | ?????#?????????????#?????????????#?? ??????????#?? | +----------------------------------------------------+ Best States ------------- Heat Dissipation 105 Coolant Potential 100 Energy Generation 118 Energy Capacity 1550 Matter Stores 400 Matter Capacity 500 Sight Range 23 Robot Scan Range 20 Terrain Scan Range 30 Terrain Scan Density 210 Jamming Range 16 Power Amplification 40 Additional Mass Support 16 Armor Coverage 2400 Resistance: KI 40 Resistance: TH 15 Resistance: EM 75 Propulsion Shielding 33 Weapon Shielding 90 Weapon Cycling 25 Evasion (%) 44 Targeting Accuracy 12 Target Analysis 9 Core Analysis 8 Recoil Reduction 6 Kinecelleration 50 Salvage Targeting 1 Offensive Hacking 14 Defensive Hacking 25 Authchip Count 1 Item Schematics ----------------- None Robot Schematics ------------------ None Fabricated ------------ Nothing Repaired ---------- Imp. Shield Generator | 15% | -5/Factory Centrium Heavy Treads | 50% | -4/Factory Alien Tech Used ----------------- Integrated Reactor Core Expander Core Reset Matrix Subatomic Replicator Phase Redirector Phase Armor Core Membrane Integrated Thermoelectric Network LRC Inertial Stabilizer LRC Energy Well Microwarp Drive Integrity Redistributor Core Regenerator Achievements -------------- Partners In Destruction Challenges ------------ None Game ------ Seed MakeshiftThermalBotcube Manual? 0 Play Time 17:45:39 Cumulative 488.9 hours Start 2025.09.15 @ 14:04:44 End 2025.09.19 @ 13:34:24 Sessions 15 Manual Loads 0 Difficulty Rogue Special Mode None Game No. 56 Rogue 53 Adventurer 3 Explorer 0 Win Type 3 Total 18 Types 9/1/3/2/0/0/1/1/1/0 Lore% 77 Gallery% 83 Achievement% 90 Wizard Run 0 Options --------- Layout 1 ASCII 0 Keyboard 0 Movement Numpad Keybinds 0 Fullscreen 1 Font 24/Smallcaps Map View 50x35 Zoom Use 0% Tactical HUD 1 Map Filters NONE Filters NONE Steam 1 RUN: 7ba4ff83-2309-4e03-ac4c-1abd855b8eeb